fUSD/lending_fUSD_20241221
["ID","MTS","AMOUNT","RATE_DAILY","PERIOD"]
[346141484,1734742239915,-283.67,0.00023273,4]
[346141485,1734742239924,-500.0,0.00023273,4]
[346141486,1734742239934,-607.26,0.00023273,4]
[346141488,1734742239943,-575.68,0.00023273,4]
[346141489,1734742239952,-920.64,0.00023273,4]
[346141490,1734742239962,-708.51,0.00023273,4]
[346141491,1734742239972,-949.93,0.00023273,4]
[346141492,1734742239981,-500.0,0.00023273,4]
[346141493,1734742239991,-500.0,0.00023273,4]
[346141494,1734742240000,-500.0,0.00023273,4]
[346141495,1734742240009,-1122.53,0.00023273,4]
[346141496,1734742240019,-735.76,0.00023273,4]
[346141497,1734742240029,-500.0,0.00023273,4]
[346141498,1734742240038,-388.24107583,0.00023273,4]
[346141499,1734742240048,-500.0,0.00023273,4]
[346141501,1734742240064,-500.0,0.00023273,4]
[346141502,1734742240074,-500.0,0.00023273,4]
[346141503,1734742240084,-657.73,0.00023273,4]
[346141504,1734742240093,-500.0,0.00023273,4]
[346141505,1734742240102,-500.0,0.00023273,4]
[346141506,1734742240111,-500.0,0.00023273,4]
[346141507,1734742240121,-500.0,0.00023273,4]
[346141508,1734742240130,-500.0,0.00023273,4]
[346141509,1734742240139,-614.43125506,0.00023273,4]
[346141510,1734742240148,-500.0,0.00023273,4]
[346141511,1734742240157,-500.0,0.00023273,4]
[346141512,1734742240166,-1162.53,0.00023273,4]
[346141513,1734742240176,-500.0,0.00023273,4]
[346141514,1734742240185,-500.0,0.00023273,4]
[346141515,1734742240194,-500.0,0.00023273,4]
[346141516,1734742240203,-500.0,0.00023273,4]
[346141517,1734742240212,-500.0,0.00023273,4]
[346141518,1734742240222,-174.16,0.00023273,4]
[346141519,1734742240231,-500.0,0.00023273,4]
[346141520,1734742240240,-513.37,0.00023273,4]
[346141521,1734742240249,-500.0,0.00023273,4]
[346141522,1734742240258,-500.0,0.00023273,4]
[346141523,1734742240267,-500.0,0.00023273,4]
[346141524,1734742240279,-1668.99,0.00023273,4]
[346141525,1734742240288,-500.0,0.00023273,4]
[346141526,1734742240297,-500.0,0.00023273,4]
[346141527,1734742240309,-526.42,0.00023273,4]
[346141528,1734742240321,-500.0,0.00023273,4]
[346141529,1734742240330,-500.0,0.00023273,4]
[346141530,1734742240339,-500.0,0.00023273,4]
[346141531,1734742240348,-176.77,0.00023339,2]
[346141532,1734742240359,-2780.19410833,0.00023357,2]
[346141533,1734742240369,-500.0,0.00023415,7]
[346141534,1734742240378,-626.44,0.00023482,2]
[346141535,1734742240388,-2780.19410833,0.00023493,2]
[346141536,1734742240397,-1112.75337244,0.0002352,2]
[346141537,1734742240406,-952.21051816,0.0002352,2]
[346141538,1734742240415,-241.8890587,0.0002352,2]
[346141539,1734742240425,-651.12825858,0.00023534,2]
[346141540,1734742240434,-500.0,0.00023546,4]
[346141541,1734742240443,-500.0,0.00023546,4]
[346141542,1734742240452,-500.0,0.00023546,4]
[346141543,1734742240461,-763.73,0.00023546,4]
[346141544,1734742240470,-500.0,0.00023546,4]
[346141545,1734742240479,-500.0,0.00023546,4]
[346141546,1734742240489,-885.75,0.00023546,4]
[346141547,1734742240498,-500.0,0.00023546,4]
[346141548,1734742240508,-500.0,0.00023546,4]
[346141549,1734742240517,-2936.36,0.00023546,4]
[346141550,1734742240527,-500.0,0.00023546,4]
[346141551,1734742240536,-500.0,0.00023546,4]
[346141552,1734742240546,-500.0,0.00023546,4]
[346141553,1734742240558,-805.32,0.00023546,4]
[346141555,1734742240567,-500.0,0.00023546,4]
[346141557,1734742240576,-500.0,0.00023546,4]
[346141559,1734742240585,-500.0,0.00023547,4]
[346141561,1734742240594,-500.0,0.00023547,4]
[346141563,1734742240604,-500.0,0.00023547,4]
[346141565,1734742240613,-500.0,0.00023547,4]
[346141567,1734742240623,-607.26,0.00023547,4]
[346141569,1734742240633,-920.64,0.00023547,4]
[346141571,1734742240642,-708.51,0.00023547,4]
[346141573,1734742240651,-949.93,0.00023547,4]
[346141574,1734742240661,-500.0,0.00023547,4]
[346141575,1734742240670,-500.0,0.00023547,4]
[346141576,1734742240679,-500.0,0.00023547,4]
[346141577,1734742240688,-1122.53,0.00023547,4]
[346141578,1734742240698,-735.76,0.00023547,4]
[346141579,1734742240707,-500.0,0.00023547,4]
[346141580,1734742240716,-582.13,0.00023547,4]
[346141581,1734742240726,-239.76,0.00023547,4]
[346141582,1734742240736,-657.73,0.00023547,4]
[346141583,1734742240745,-500.0,0.00023547,4]
[346141584,1734742240755,-500.0,0.00023547,4]
[346141585,1734742240765,-500.0,0.00023547,4]
[346141586,1734742240775,-500.0,0.00023547,4]
[346141587,1734742240784,-500.0,0.00023547,4]
[346141588,1734742240793,-500.0,0.00023547,4]
[346141589,1734742240803,-500.0,0.00023547,4]
[346141590,1734742240812,-1162.53,0.00023547,4]
[346141591,1734742240822,-500.0,0.00023547,4]
[346141592,1734742240831,-500.0,0.00023547,4]
[346141593,1734742240840,-500.0,0.00023547,4]
[346141594,1734742240850,-500.0,0.00023547,4]
[346141595,1734742240860,-500.0,0.00023547,4]
[346141596,1734742240870,-1668.99,0.00023547,4]
[346141597,1734742240879,-500.0,0.00023547,4]
[346141598,1734742240889,-500.0,0.00023547,4]
[346141599,1734742240899,-500.0,0.00023547,4]
[346141600,1734742240908,-500.0,0.00023547,4]
[346141601,1734742240917,-500.46440031,0.00023573,2]
[346141602,1734742240927,-150.0,0.00023585,2]
[346141603,1734742240936,-629.0,0.00023585,2]
[346141604,1734742240946,-153.178,0.00023585,2]
[346141605,1734742240955,-322.77,0.00023585,2]
[346141606,1734742240964,-200.0,0.00023585,2]
[346141607,1734742240973,-500.0,0.00023599,4]
[346141608,1734742240983,-500.0,0.00023599,4]
[346141609,1734742240992,-500.0,0.00023599,4]
[346141610,1734742241001,-500.0,0.00023599,4]
[346141611,1734742241011,-500.0,0.00023599,4]
[346141612,1734742241020,-500.0,0.00023599,4]
[346141613,1734742241029,-500.0,0.00023599,4]
[346141614,1734742241038,-525.03785459,0.00023599,4]
[346141615,1734742241047,-500.0,0.00023599,4]
[346141616,1734742241059,-500.0,0.00023599,4]
[346141617,1734742241068,-500.0,0.00023599,4]
[346141618,1734742241077,-503.72531405,0.00023599,4]
[346141619,1734742241086,-500.0,0.00023599,4]
[346141620,1734742241096,-500.0,0.00023599,4]
[346141621,1734742241105,-500.0,0.00023599,4]
[346141622,1734742241114,-500.0,0.00023599,4]
[346141623,1734742241124,-500.0,0.00023599,4]
[346141624,1734742241133,-500.0,0.00023599,4]
[346141625,1734742241142,-500.0,0.00023599,4]
[346141626,1734742241151,-500.0,0.00023599,4]
[346141627,1734742241161,-500.0,0.00023599,4]
[346141628,1734742241171,-500.0,0.00023599,4]
[346141629,1734742241181,-500.0,0.00023599,4]
[346141630,1734742241190,-500.0,0.00023599,4]
[346141631,1734742241200,-500.0,0.00023599,4]
[346141632,1734742241209,-500.0,0.00023599,4]
[346141633,1734742241219,-266.66363675,0.00023599,4]
[346141634,1734742241229,-500.0,0.00023599,4]
[346141635,1734742241238,-500.0,0.00023599,4]
[346141636,1734742241249,-500.0,0.00023599,4]
[346141637,1734742241259,-500.0,0.00023599,4]
[346141638,1734742241269,-500.0,0.00023599,4]
[346141639,1734742241283,-500.0,0.00023599,4]
[346141640,1734742241292,-500.0,0.00023599,4]
[346141641,1734742241302,-500.0,0.00023599,4]
[346141642,1734742241311,-5000.0,0.00023599,10]
[346141643,1734742241322,-500.0,0.00023599,4]
[346141644,1734742241331,-500.0,0.00023599,4]
[346141645,1734742241340,-500.0,0.00023599,4]
[346141646,1734742241352,-500.0,0.00023599,4]
[346141647,1734742241361,-500.0,0.00023599,4]
[346141648,1734742241370,-502.79629369,0.00023599,4]
[346141649,1734742241379,-501.00731327,0.00023599,4]
[346141650,1734742241389,-500.0,0.00023599,4]
[346141651,1734742241398,-500.0,0.00023599,4]
[346141652,1734742241406,-500.0,0.00023599,4]
[346141653,1734742241415,-500.0,0.00023599,4]
[346141654,1734742241424,-500.0,0.00023599,4]
[346141655,1734742241433,-500.0,0.00023599,4]
[346141656,1734742241442,-500.0,0.00023599,4]
[346141657,1734742241452,-500.0,0.00023599,4]
[346141658,1734742241461,-500.0,0.00023599,4]
[346141659,1734742241470,-500.0,0.00023599,4]
[346141660,1734742241479,-500.0,0.00023599,4]
[346141661,1734742241488,-500.0,0.00023599,4]
[346141662,1734742241497,-501.5234922,0.00023599,4]
[346141663,1734742241507,-500.0,0.00023599,4]
[346141664,1734742241518,-500.0,0.00023599,2]
[346141665,1734742241686,-500.0,0.00023599,2]
[346141666,1734742241696,-500.0,0.00023599,4]
[346141667,1734742241706,-206.37,0.00023599,4]
[346141668,1734742241715,-1946.0,0.000236,2]
[346141669,1734742241724,-2780.19410833,0.00023629,2]
[346141670,1734742241734,-500.0,0.00023689,7]
[346141671,1734742241743,-2780.19410833,0.00023764,2]
[346141672,1734742241752,-241.95997093,0.00023787,4]
[346141673,1734742241761,-500.0,0.00023787,4]
[346141674,1734742241770,-500.0,0.00023787,2]
[346141675,1734742241779,-1500.0,0.000238,2]
[346141676,1734742241788,-1819.0,0.000238,4]
[346141677,1734742241797,-500.0,0.00023808,2]
[346141678,1734742241809,-500.0,0.0002382,4]
[346141679,1734742241818,-500.0,0.0002382,4]
[346141680,1734742241827,-500.0,0.0002382,4]
[346141681,1734742241836,-763.73,0.0002382,4]
[346141682,1734742241848,-500.0,0.0002382,4]
[346141683,1734742241857,-500.0,0.0002382,4]
[346141684,1734742241866,-885.75,0.0002382,4]
[346141685,1734742241875,-500.0,0.0002382,4]
[346141686,1734742241884,-500.0,0.0002382,4]
[346141687,1734742241893,-2936.36,0.0002382,4]
[346141688,1734742241903,-500.0,0.0002382,4]
[346141689,1734742241912,-500.0,0.0002382,4]
[346141690,1734742241921,-500.0,0.0002382,4]
[346141691,1734742241931,-805.32,0.0002382,4]
[346141692,1734742241940,-500.0,0.0002382,4]
[346141693,1734742241952,-500.0,0.0002382,4]
[346141694,1734742241963,-500.0,0.00023821,4]
[346141695,1734742241972,-500.0,0.00023821,4]
[346141696,1734742241981,-500.0,0.00023821,4]
[346141697,1734742241990,-500.0,0.00023821,4]
[346141698,1734742242000,-607.26,0.00023821,4]
[346141699,1734742242009,-920.64,0.00023821,4]
[346141700,1734742242019,-708.51,0.00023821,4]
[346141701,1734742242028,-949.93,0.00023821,4]
[346141702,1734742242038,-500.0,0.00023821,4]
[346141703,1734742242047,-500.0,0.00023821,4]
[346141704,1734742242058,-1122.53,0.00023821,4]
[346141705,1734742242068,-735.76,0.00023821,4]
[346141706,1734742242077,-500.0,0.00023821,4]
[346141707,1734742242087,-657.73,0.00023821,4]
[346141708,1734742242096,-500.0,0.00023821,4]
[346141709,1734742242105,-500.0,0.00023821,4]
[346141710,1734742242115,-500.0,0.00023821,4]
[346141711,1734742242124,-500.0,0.00023821,4]
[346141712,1734742242134,-500.0,0.00023821,4]
[346141713,1734742242143,-500.0,0.00023821,4]
[346141714,1734742242152,-1162.53,0.00023821,4]
[346141715,1734742242162,-500.0,0.00023821,4]
[346141716,1734742242172,-500.0,0.00023821,4]
[346141717,1734742242181,-500.0,0.00023821,4]
[346141718,1734742242191,-500.0,0.00023821,4]
[346141719,1734742242200,-500.0,0.00023821,4]
[346141720,1734742242209,-1668.99,0.00023821,4]
[346141721,1734742242218,-548.48954767,0.00023821,4]
[346141722,1734742242227,-500.0,0.00023821,4]
[346141723,1734742242236,-500.0,0.00023821,4]
[346141724,1734742242245,-999.0,0.00023863,7]
[346141725,1734742242254,-999.0,0.00023863,7]
[346141726,1734742242263,-999.0,0.00023863,7]
[346141727,1734742242273,-999.0,0.00023863,7]
[346141728,1734742242282,-999.0,0.00023863,7]
[346141729,1734742242291,-999.0,0.00023863,7]
[346141730,1734742242300,-999.0,0.00023863,7]
[346141731,1734742242312,-999.0,0.00023863,7]
[346141732,1734742242321,-999.0,0.00023863,7]
[346141733,1734742242330,-999.0,0.00023863,7]
[346141734,1734742242339,-999.0,0.00023863,7]
[346141735,1734742242347,-999.0,0.00023863,7]
[346141736,1734742242357,-999.0,0.00023863,7]
[346141737,1734742242369,-999.0,0.00023863,7]
[346141738,1734742242378,-999.0,0.00023863,7]
[346141739,1734742242387,-999.0,0.00023863,7]
[346141740,1734742242397,-999.0,0.00023863,7]
[346141741,1734742242406,-999.0,0.00023863,7]
[346141742,1734742242419,-999.0,0.00023863,7]
[346141743,1734742242429,-1019.0,0.00023863,7]
[346141744,1734742242438,-500.0,0.00023873,4]
[346141745,1734742242448,-500.0,0.00023873,2]
[346141746,1734742242457,-500.0,0.00023873,2]
[346141747,1734742242466,-500.0,0.00023873,4]
[346141748,1734742242475,-3587.63698879,0.0002388,5]
[346141749,1734742242485,-18081.2585,0.00023899,2]
[346141750,1734742242494,-500.0,0.00023899,2]
[346141751,1734742242503,-500.0,0.00023899,2]
[346141752,1734742242513,-150.59207615,0.000239,2]
[346141753,1734742242522,-29652.374775,0.000239,2]
[346141754,1734742242531,-7089.60888512,0.000239,2]
[346141755,1734742242540,-2780.19410833,0.000239,2]
[346141756,1734742242551,-162.33,0.000239,7]
[346141757,1734742242562,-96030.32615096,0.000239,2]
[346141758,1734742242571,-3949.59487196,0.000239,2]
[346141759,1734742242580,-1224.0,0.000239,2]
[346141760,1734742242589,-2110.0,0.0002395,2]
[346141761,1734742242598,-500.0,0.00023962,7]
[346141762,1734742242607,-700.0,0.0002397,2]
[346141763,1734742242617,-700.0,0.0002397,2]
[346141764,1734742242628,-700.0,0.0002397,2]
[346141765,1734742242637,-700.0,0.0002397,2]
[346141766,1734742242646,-400.0,0.0002397,2]
[346141767,1734742242656,-800.0,0.0002397,2]
[346141768,1734742242665,-400.0,0.0002397,2]
[346141769,1734742242675,-400.0,0.0002397,2]
[346141770,1734742242685,-500.0,0.0002397,2]
[346141771,1734742242694,-231.10693469,0.00023972,4]
[346141772,1734742242703,-1000.0,0.00023972,4]
[346141773,1734742242715,-500.0,0.00023972,4]
[346141774,1734742242724,-707.61,0.00023972,4]
[346141775,1734742242735,-28117.0,0.00023973,2]
[346141776,1734742242744,-38893.0,0.00023973,2]
[346141777,1734742242753,-4031.0,0.00023973,2]
[346141778,1734742242763,-500.0,0.00023973,2]
[346141779,1734742242773,-500.0,0.00023973,2]
[346141780,1734742242782,-224.41283692,0.00023989,2]
[346141781,1734742242791,-150.122109,0.00023997,2]
[346141782,1734742242801,-150.122109,0.00023997,3]
[346141783,1734742242812,-150.122109,0.00023997,4]
[346141784,1734742242821,-150.122109,0.00023997,5]
[346141785,1734742242831,-150.122109,0.00023997,6]
[346141786,1734742242840,-150.122109,0.00023997,9]
[346141787,1734742242850,-150.122109,0.00023997,10]
[346141788,1734742242860,-150.122109,0.00023998,2]
[346141789,1734742242870,-150.122109,0.00023998,3]
[346141790,1734742242879,-150.122109,0.00023998,4]
[346141791,1734742242888,-150.122109,0.00023998,5]
[346141792,1734742242897,-150.122109,0.00023998,6]
[346141793,1734742242906,-150.122109,0.00023998,9]
[346141794,1734742242915,-150.122109,0.00023998,10]
[346141795,1734742242924,-150.122109,0.00023998,11]
[346141796,1734742242934,-150.122109,0.00023998,12]
[346141797,1734742242943,-150.122109,0.00023998,13]
[346141798,1734742242952,-666.0,0.00023999,2]
[346141799,1734742242961,-666.0,0.00023999,2]
[346141800,1734742242971,-666.0,0.00023999,2]
[346141801,1734742242980,-666.0,0.00023999,2]
[346141802,1734742242989,-482696.6152216,0.00023999,7]
[346141803,1734742242998,-264290.33681366,0.00023999,2]
[346141804,1734742243007,-150.0,0.00023999,2]
[346141805,1734742243016,-150.0,0.00023999,2]
[346141806,1734742243025,-150.0,0.00023999,2]
[346141807,1734742243035,-150.0,0.00023999,2]
[346141808,1734742243046,-150.0,0.00023999,2]
[346141809,1734742243057,-150.0,0.00023999,2]
[346141810,1734742243066,-150.0,0.00023999,2]
[346141811,1734742243075,-241.92577242,0.00023999,2]
[346141812,1734742243084,-1272482.30925633,0.00024,3]
[346141813,1734742243093,-14129.64406362,0.00024,2]
[346141814,1734742243102,-8764.62723395,0.00024,3]
[346141815,1734742243111,-21519104.03847741,0.00024,5]
[346141818,1734742243269,-9815.53272402,0.00024,5]
[346141819,1734742243283,-2016.5957974,0.00024,5]
[346141820,1734742243299,-467.52,0.00022999,4]
[346141821,1734742243318,-32.48,0.00022999,4]
[346141822,1734742243327,-1985.91708,0.00024,5]
[346141823,1734742243402,-500.0,0.00023273,4]
[346141824,1734742243411,-142.97607776,0.00023547,4]
[346141825,1734742243429,-357.02392224,0.00023547,4]
[346141826,1734742243439,-500.0,0.00023821,4]
[346141827,1734742243448,-11933.08278253,0.00024,5]
[346141828,1734742243494,-1030.75000212,0.00024,5]
[346141829,1734742243513,-301.21399674,0.00024,5]
[346141830,1734742246433,-1125.67296726,0.00022999,4]
[346141831,1734742246442,-500.0,0.00022999,4]
[346141832,1734742246451,-117.86275416,0.00022999,4]
[346141833,1734742458170,158.1,0.00010137,2]
[346141842,1734742695978,303.91100309,0.000235,120]
[346141858,1734743363036,4050.0,0.000235,120]
[346141863,1734743432383,-569.9,0.00020496,2]
[346141864,1734743432393,-500.0,0.00020614,2]
[346141865,1734743432402,-150.0,0.000216,4]
[346141866,1734743432412,-150.0,0.000216,4]
[346141867,1734743432421,-150.0,0.000216,4]
[346141868,1734743432431,-1944.71,0.00021871,2]
[346141869,1734743432440,-250.0,0.00021917,2]
[346141870,1734743432450,-281.66,0.00021946,2]
[346141871,1734743432459,-250.0,0.00021978,2]
[346141872,1734743432469,-500.0,0.00022001,2]
[346141873,1734743432478,-176.77,0.00022119,2]
[346141874,1734743432487,-250.0,0.0002218,2]
[346141875,1734743432496,-2021.05,0.00022184,2]
[346141876,1734743432506,-150.0,0.000222,4]
[346141877,1734743432515,-250.0,0.00022248,2]
[346141878,1734743432524,-841.27,0.00022272,2]
[346141879,1734743432534,-300.0,0.00022759,2]
[346141880,1734743432543,-569.9,0.0002276,2]
[346141881,1734743432552,-614.3,0.0002276,2]
[346141882,1734743432561,-999.99,0.0002276,2]
[346141883,1734743432570,-6530.4,0.0002276,2]
[346141884,1734743432579,-9999.99,0.0002276,2]
[346141885,1734743432588,-2152.6,0.0002276,2]
[346141886,1734743432598,-150.99,0.0002276,2]
[346141887,1734743432607,-150.99,0.0002276,2]
[346141888,1734743432616,-261.43,0.0002276,2]
[346141889,1734743432625,-9999.99,0.0002276,2]
[346141890,1734743432635,-1000.0,0.00022794,2]
[346141891,1734743432644,-378.71,0.000228,2]
[346141892,1734743432653,-150.0,0.000228,4]
[346141893,1734743432662,-150.0,0.000228,4]
[346141894,1734743432671,-362.61070837,0.00022806,2]
[346141895,1734743432679,-264.9215,0.00022898,2]
[346141896,1734743432690,-6249.6252,0.00022899,2]
[346141897,1734743432699,-1000.0,0.00022899,2]
[346141898,1734743432710,-2500.0,0.00022899,2]
[346141899,1734743432720,-500.0,0.000229,2]
[346141900,1734743432730,-1773.6688,0.000229,2]
[346141901,1734743432739,-12006.2101,0.000229,2]
[346141902,1734743432748,-5000.0,0.000229,2]
[346141903,1734743432758,-171.23821872,0.000229,2]
[346141904,1734743432768,-481.35508119,0.00022973,2]
[346141905,1734743432781,-161.33916208,0.00022973,2]
[346141906,1734743432792,-769.936,0.00022997,2]
[346141907,1734743432801,-500.0,0.00022998,4]
[346141908,1734743432811,-382.13724584,0.00022998,4]
[346141909,1734743432820,-500.0,0.00022998,4]
[346141910,1734743432829,-500.0,0.00022998,4]
[346141911,1734743432838,-500.0,0.00022998,4]
[346141912,1734743432848,-500.0,0.00022998,4]
[346141913,1734743432858,-642.82,0.00022998,4]
[346141914,1734743432867,-500.0,0.00022998,4]
[346141916,1734743432877,-500.0,0.00022998,4]
[346141918,1734743432886,-317.23685663,0.00022998,4]
[346141920,1734743432896,-500.0,0.00022998,2]
[346141922,1734743432905,-500.0,0.00022998,4]
[346141924,1734743432916,-500.0,0.00022998,4]
[346141926,1734743432925,-500.0,0.00022998,2]
[346141928,1734743432935,-500.0,0.00022998,4]
[346141930,1734743432945,-500.0,0.00022998,4]
[346141932,1734743432954,-500.0,0.00022998,4]
[346141934,1734743432964,-500.0,0.00022998,4]
[346141936,1734743432974,-500.0,0.00022998,4]
[346141938,1734743432983,-500.0,0.00022998,4]
[346141940,1734743432993,-500.0,0.00022998,4]
[346141941,1734743433003,-500.0,0.00022998,4]
[346141942,1734743433013,-500.0,0.00022998,4]
[346141943,1734743433025,-500.0,0.00022998,4]
[346141944,1734743433034,-500.0,0.00022998,4]
[346141945,1734743433043,-500.0,0.00022998,4]
[346141946,1734743433053,-500.0,0.00022998,4]
[346141947,1734743433063,-327.64116879,0.00022998,4]
[346141948,1734743433072,-500.0,0.00022998,4]
[346141949,1734743433082,-500.0,0.00022998,4]
[346141950,1734743433091,-574.75,0.00022998,4]
[346141951,1734743433101,-699.7,0.00022998,4]
[346141952,1734743433110,-500.0,0.00022998,4]
[346141953,1734743433120,-500.0,0.00022998,4]
[346141954,1734743433130,-765.41,0.00022998,4]
[346141955,1734743433139,-500.0,0.00022998,4]
[346141956,1734743433149,-1287.47,0.00022998,4]
[346141957,1734743433159,-500.0,0.00022998,4]
[346141958,1734743433169,-500.0,0.00022998,4]
[346141959,1734743433179,-500.0,0.00022998,4]
[346141960,1734743433188,-500.0,0.00022998,4]
[346141961,1734743433198,-500.0,0.00022998,4]
[346141962,1734743433208,-3364.65,0.00022998,4]
[346141963,1734743433218,-500.0,0.00022998,4]
[346141964,1734743433229,-500.0,0.00022998,4]
[346141965,1734743433239,-500.0,0.00022998,4]
[346141966,1734743433250,-500.0,0.00022998,4]
[346141967,1734743433260,-500.0,0.00022998,4]
[346141968,1734743433274,-500.0,0.00022998,4]
[346141969,1734743433287,-633.97849712,0.00022998,4]
[346141970,1734743433296,-641.55,0.00022998,4]
[346141971,1734743433306,-500.0,0.00022998,4]
[346141972,1734743433315,-500.0,0.00022998,4]
[346141973,1734743433325,-500.0,0.00022998,4]
[346141974,1734743433335,-500.0,0.00022999,4]
[346141975,1734743433345,-518.80759979,0.00022999,4]
[346141976,1734743433355,-500.0,0.00022999,4]
[346141977,1734743433365,-502.78681461,0.00022999,4]
[346141978,1734743433374,-500.0,0.00022999,4]
[346141979,1734743433384,-500.0,0.00022999,4]
[346141980,1734743433393,-500.0,0.00022999,4]
[346141981,1734743433403,-500.89598542,0.00022999,4]
[346141982,1734743433412,-500.0,0.00022999,4]
[346141983,1734743433421,-500.0,0.00022999,4]
[346141984,1734743433430,-462.03186747,0.00022999,4]
[346141985,1734743433440,-504.16061208,0.00022999,4]
[346141986,1734743433449,-500.0,0.00022999,4]
[346141987,1734743433458,-500.0,0.00022999,4]
[346141988,1734743433467,-500.0,0.00022999,4]
[346141989,1734743433477,-501.38227894,0.00022999,4]
[346141990,1734743433486,-500.0,0.00022999,4]
[346141991,1734743433496,-500.44619094,0.00022999,4]
[346141992,1734743433506,-500.0,0.00022999,4]
[346141993,1734743433519,-500.0,0.00022999,4]
[346141994,1734743433529,-300.0,0.00022999,4]
[346141995,1734743433539,-500.0,0.00022999,4]
[346141996,1734743433548,-500.0,0.00022999,4]
[346141997,1734743433558,-191.99688244,0.00022999,4]
[346141998,1734743433568,-500.0,0.00022999,4]
[346141999,1734743433578,-500.0,0.00022999,4]
[346142000,1734743433588,-500.0,0.00022999,4]
[346142001,1734743433598,-500.0,0.00022999,4]
[346142002,1734743433607,-500.0,0.00022999,4]
[346142003,1734743433617,-500.43167777,0.00022999,4]
[346142004,1734743433627,-500.0,0.00022999,4]
[346142005,1734743433636,-500.0,0.00022999,4]
[346142006,1734743433646,-500.0,0.00022999,4]
[346142007,1734743433655,-500.0,0.00022999,4]
[346142008,1734743433665,-500.0,0.00022999,4]
[346142009,1734743433674,-500.0,0.00022999,4]
[346142010,1734743433683,-292.99826096,0.00022999,4]
[346142011,1734743433693,-500.0,0.00022999,2]
[346142012,1734743433702,-500.0,0.00022999,4]
[346142013,1734743433713,-500.0,0.00022999,4]
[346142014,1734743433722,-501.35475657,0.00022999,4]
[346142015,1734743433731,-500.0,0.00022999,4]
[346142016,1734743433741,-500.0,0.00022999,4]
[346142017,1734743433751,-500.0,0.00022999,4]
[346142018,1734743433761,-500.0,0.00022999,4]
[346142019,1734743433771,-579.58,0.00022999,4]
[346142020,1734743433783,-500.0,0.00022999,4]
[346142021,1734743433793,-500.0,0.00022999,4]
[346142022,1734743433804,-500.0,0.00022999,4]
[346142023,1734743433813,-500.0,0.00022999,4]
[346142024,1734743433823,-500.0,0.00022999,4]
[346142025,1734743433833,-500.0,0.00022999,2]
[346142026,1734743433843,-500.0,0.00022999,2]
[346142027,1734743433852,-500.0,0.00022999,2]
[346142028,1734743433862,-500.0,0.00022999,4]
[346142029,1734743433872,-500.0,0.00022999,4]
[346142030,1734743433882,-500.0,0.00022999,4]
[346142031,1734743433892,-500.0,0.00022999,4]
[346142032,1734743433902,-539.18,0.00022999,4]
[346142033,1734743433912,-500.0,0.00022999,4]
[346142034,1734743433922,-500.0,0.00022999,4]
[346142035,1734743433932,-500.0,0.00022999,4]
[346142036,1734743433942,-500.0,0.00022999,4]
[346142037,1734743433952,-511.85,0.00022999,4]